bitfinex-derivatives/quotes_SOLF0:USTF0_20250310
["timestamp","ask_amount","ask_price","bid_price","bid_amount"]
[1741645868239,35.46,117.95,117.9,4.086]
[1741645868431,35.51615932,117.95,117.92,0.0635325]
[1741645869336,0.05615932,117.95,117.92,0.0635325]
[1741645869737,0.05615932,117.95,117.92,35.5435325]
[1741645870136,0.05615932,117.95,117.94,8.4829]
[1741645870543,0.05615932,117.95,117.93,8.4831]
[1741645870843,68.88962124,118.02,117.92,35.5435325]
[1741645871039,68.88962124,118.02,117.92,35.48]
[1741645871440,37.63972124,118.04,117.93,33.40962124]
[1741645871641,35.48,118.03,117.93,33.40962124]
[1741645871841,35.48,118.03,117.94,1.54607091]
[1741645872043,0.05914102,117.99,117.97,0.05751874]
[1741645872236,33.40962124,118.06,117.98,35.5]
[1741645872440,8.4752,118.05,117.98,48.3024]
[1741645872642,68.90962124,118.08,117.98,39.8229]
[1741645873040,68.90962124,118.08,117.98,48.3024]
[1741645873235,33.40962124,118.06,117.98,39.8229]
[1741645873440,33.40962124,118.06,118.02,0.05356445]
[1741645873642,0.06431294,118.04,118.02,0.05356445]
[1741645873940,8.4764,118.03,118.02,0.05356445]
[1741645874148,33.47393418,118.04,117.98,4.3229]
[1741645874344,54.54864928,118.04,117.98,4.3229]
[1741645874541,8.4791,118.0,117.98,4.3229]
[1741645874746,54.48433634,118.02,117.96,4.0993]
[1741645874944,89.98433634,118.02,117.96,4.0993]
[1741645875146,89.98433634,118.02,117.93,35.5]
[1741645875147,8.4802,117.98,117.93,35.5]
[1741645875454,54.54191042,118.0,117.93,35.5]
[1741645875646,8.4808,117.97,117.94,0.05383316]
[1741645876247,0.0588846,117.98,117.94,8.53653316]
[1741645876853,0.0588846,117.98,117.94,54.5381695]
[1741645877057,283.98433634,118.04,117.94,54.5381695]
[1741645877353,89.98433634,118.04,117.94,54.48433634]
[1741645877854,89.98433634,118.04,117.94,8.4827]
[1741645878155,0.06310261,118.0,117.98,0.0551834]
[1741645878653,54.48433634,118.08,117.99,35.5]
[1741645878865,54.48433634,118.1,118.0,54.48433634]
[1741645879448,8.4736,118.07,118.0,54.48433634]
[1741645879656,54.48433634,118.1,118.0,54.48433634]
[1741645879861,0.05672125,118.05,118.02,0.06208009]
[1741645880160,8.53172125,118.05,118.02,35.5]
[1741645880454,8.53172125,118.05,118.02,35.56155876]
[1741645880657,0.05672125,118.05,118.02,35.56155876]
[1741645882458,8.53212125,118.05,118.02,35.56155876]
[1741645882659,0.05672125,118.05,118.02,35.56155876]
[1741645882957,8.4764,118.03,118.02,0.06155876]
[1741645883257,8.4764,118.03,118.02,5.876e-05]
[1741645883651,2.54,118.03,117.92,8.3175]
[1741645883854,54.48433634,117.99,117.92,8.3175]
[1741645884159,89.98433634,117.99,117.92,8.3175]
[1741645885765,0.06242813,117.97,117.92,8.3175]
[1741645885964,0.06242813,117.97,117.94,0.06221357]
[1741645886165,8.4822,117.95,117.94,0.06221357]
[1741645886870,8.54352813,117.97,117.94,0.06221357]
[1741645887057,0.06242813,117.97,117.94,0.06221357]
[1741645887758,0.06242813,117.97,117.94,35.56221357]
[1741645887966,8.4822,117.95,117.94,0.06221357]
[1741645889465,8.4816,117.96,117.94,0.06221357]
[1741645889663,0.06242813,117.97,117.95,35.5]
[1741645889871,54.48433634,118.03,117.95,35.5]
[1741645890063,35.5,118.04,117.95,35.5]
[1741645890469,54.48433634,118.05,117.98,8.4794]
[1741645890666,54.48433634,118.05,117.95,35.5]
[1741645890868,54.48433634,118.05,117.97,8.4804]
[1741645891162,8.4786,118.0,117.99,0.06057472]
[1741645891670,8.53595694,118.01,117.99,0.06057472]
[1741645891867,0.05775694,118.01,117.99,0.06057472]
[1741645892269,8.4786,118.0,117.99,0.06057472]
[1741645892566,0.05775694,118.01,117.99,0.06057472]
[1741645893273,8.4786,118.0,117.99,0.06057472]
[1741645894567,0.05775694,118.01,117.99,0.06057472]
[1741645894775,8.53605694,118.01,117.99,0.06057472]
[1741645895173,8.4786,118.0,117.99,0.06057472]
[1741645895575,0.05775694,118.01,117.99,0.06057472]
[1741645895778,0.1308,118.09,117.99,0.06057472]
[1741645895971,33.53582442,118.08,117.99,8.41037472]
[1741645896166,116.04952185,118.1,118.0,33.53582442]
[1741645896369,116.04952185,118.1,117.99,8.3498]
[1741645896370,33.53582442,118.08,118.01,35.74]
[1741645897076,46.77369743,118.05,118.03,0.0582559]
[1741645897776,8.4757,118.04,118.03,0.0582559]
[1741645899475,8.4757,118.04,118.03,5.59e-05]
[1741645900172,42.01152442,118.04,118.03,5.59e-05]
[1741645900375,77.91152442,118.04,118.03,5.59e-05]
[1741645900877,8.4757,118.04,118.03,5.59e-05]
[1741645902774,77.89152442,118.04,118.03,5.59e-05]
[1741645902981,8.48,117.98,117.97,4.4151]
[1741645905278,0.05726922,117.99,117.97,4.4151]
[1741645905672,5.22785819,118.04,117.97,4.4151]
[1741645905874,47.47766866,118.05,117.97,4.4151]
[1741645906179,47.12189095,118.04,117.97,4.4151]
[1741645906380,33.53582442,118.02,117.97,4.4151]
[1741645906579,13.60715907,118.01,117.97,4.4151]
[1741645906782,8.4793,117.99,117.98,0.05951542]
[1741645907183,20.37741296,117.99,117.98,0.05951542]
[1741645908183,28.76560995,117.99,117.98,0.05951542]
[1741645909885,20.37741296,117.99,117.98,0.05951542]
[1741645910085,11.89811296,117.99,117.98,0.05951542]
[1741645910285,11.90196405,117.99,117.98,0.05951542]
[1741645910480,6.65763702,117.99,117.98,0.05951542]
[1741645911084,139.05291718,118.01,117.98,35.81951542]
[1741645911284,125.60561718,118.01,117.98,35.81951542]
[1741645911879,112.15861718,118.01,117.98,35.81951542]
[1741645912086,3.15601718,118.01,117.98,69.35533984]
[1741645912293,138.33392783,118.02,117.98,69.35533984]
[1741645912490,0.06416003,118.01,117.98,69.35533984]
[1741645912782,115.57202783,118.02,118.01,8.4779]
[1741645913084,214.45723383,118.03,118.01,37.32548445]
[1741645913288,214.45723383,118.03,118.01,38.32]
[1741645913687,214.45723383,118.03,118.02,8.4772]
[1741645913890,214.45723383,118.03,118.01,38.32]
[1741645913891,214.51469722,118.03,118.01,35.83520512]
[1741645914186,0.05746339,118.03,118.01,35.83520512]
[1741645914491,0.05746339,118.03,118.02,8.4772]
[1741645915090,0.05746339,118.03,118.02,11.0172]
[1741645915292,6.339e-05,118.03,118.02,44.55302442]
[1741645915493,6.339e-05,118.03,118.02,46.09802809]
[1741645916697,31.02759273,118.09,118.07,8.4734]
[1741645917198,31.02759273,118.09,118.06,35.74]
[1741645917394,31.02759273,118.09,118.08,8.4728]
[1741645917696,8.3769,118.13,118.06,69.27582442]
[1741645917885,0.05493846,118.1,118.07,1.60700444]
[1741645918091,0.05493846,118.1,118.07,0.06257277]
[1741645918490,8.52673846,118.1,118.07,0.06257277]
[1741645918691,0.05493846,118.1,118.07,0.06257277]
[1741645918888,0.05493846,118.1,118.07,8.53587277]
[1741645919392,0.05493846,118.1,118.07,0.06257277]
[1741645920096,8.52653846,118.1,118.07,0.06257277]
[1741645920397,0.05493846,118.1,118.08,33.53582442]
[1741645920587,0.05493846,118.1,118.07,0.06257277]
[1741645921394,0.05493846,118.1,118.08,313.05582442]
[1741645921695,3.846e-05,118.1,118.09,45.89642855]
[1741645922207,17.2606,118.19,118.15,8.4676]
[1741645922493,8.7951,118.19,118.14,35.86]
[1741645922701,8.7951,118.19,118.16,8.4665]
[1741645922999,8.7951,118.19,118.14,35.96]
[1741645923195,0.05397233,118.18,118.16,8.467]
[1741645923395,0.05397233,118.18,118.15,0.05879004]
[1741645923797,0.05397233,118.18,118.16,8.467]
[1741645923994,0.05397233,118.18,118.15,0.05879004]
[1741645924797,0.05397233,118.18,118.16,8.4667]
[1741645924998,0.05397233,118.18,118.17,36.0]
[1741645925696,0.05397233,118.18,118.15,0.05879004]
[1741645927405,0.05397233,118.18,118.16,8.4667]
[1741645927604,0.05397233,118.18,118.15,0.05879004]
[1741645927996,0.05397233,118.18,118.16,8.4669]
[1741645928400,0.05397233,118.18,118.15,0.05879004]
[1741645928601,0.05397233,118.18,118.17,8.4664]
[1741645929304,0.05397233,118.18,118.16,8.4668]
[1741645929500,0.05397233,118.18,118.15,0.05879004]
[1741645929807,0.05397233,118.18,118.16,8.4671]
[1741645930116,0.05397233,118.18,118.15,0.05879004]
[1741645930302,8.4668,118.17,118.15,0.05879004]
[1741645930502,0.05397233,118.18,118.15,0.05879004]
[1741645931007,0.05397233,118.18,118.15,8.52619004]
[1741645932706,0.05397233,118.18,118.15,0.05879004]
[1741645934100,0.05397233,118.18,118.17,8.4664]
[1741645934302,7.233e-05,118.18,118.17,44.3864]
[1741645934506,7.233e-05,118.18,118.17,46.9264]
[1741645934707,7.233e-05,118.18,118.17,48.46950718]
[1741645935508,7.233e-05,118.18,118.17,45.92950718]
[1741645936208,7.233e-05,118.18,118.17,45.92934185]
[1741645937806,7.233e-05,118.18,118.17,44.3864]
[1741645938005,7.233e-05,118.18,118.17,45.92947327]
[1741645939299,8.2445,118.25,118.17,40.00307327]
[1741645939506,33.53582442,118.3,118.2,33.53582442]
[1741645939702,8.2242,118.29,118.21,35.74]
[1741645940406,8.50534635,118.26,118.24,0.06296059]
[1741645941509,0.04494635,118.26,118.24,0.06296059]
[1741645942111,8.4607,118.25,118.24,0.06296059]
[1741645943012,0.04494635,118.26,118.21,35.74]
[1741645943207,8.4626,118.23,118.2,35.64]
[1741645943406,69.17582442,118.28,118.19,8.4644]
[1741645943603,3.8366,118.25,118.2,35.62]
[1741645944209,8.4632,118.22,118.21,0.05549634]
[1741645944817,8.4622,118.23,118.2,35.62]
[1741645945116,0.05652526,118.24,118.18,35.56]
[1741645945516,8.51822526,118.24,118.18,35.56]
[1741645946014,0.05652526,118.24,118.2,0.06149844]
[1741645947217,8.51822526,118.24,118.2,8.52519844]
[1741645947516,8.51822526,118.24,118.2,0.06149844]
[1741645947517,0.05652526,118.24,118.2,0.06149844]
[1741645947911,8.4624,118.23,118.2,8.52569844]
[1741645948111,0.05652526,118.24,118.2,0.06149844]
[1741645948517,8.4623,118.23,118.2,8.52529844]
[1741645948818,0.05652526,118.24,118.2,0.06149844]
[1741645949022,33.59234968,118.24,118.2,0.06149844]
[1741645950019,4.0379,118.23,118.2,0.06149844]
[1741645950417,4.0379,118.23,118.18,35.52]
[1741645951214,4.0379,118.23,118.16,279.28]
[1741645951421,4.0379,118.23,118.17,35.5]
[1741645951620,0.06502513,118.21,118.18,0.0540686]
[1741645951823,8.465,118.19,118.18,0.0540686]
[1741645952324,0.06502513,118.21,118.14,8.4679]
[1741645952622,33.53582442,118.2,118.12,93.69285065]
[1741645952834,8.4679,118.15,118.12,137.64255065]
[1741645953131,69.09582442,118.18,118.12,93.69285065]
[1741645953427,33.59590892,118.16,118.11,158.85365689]
[1741645953729,33.53582442,118.12,118.11,57.84663204]
[1741645953926,42.00582442,118.12,118.11,57.84663204]
[1741645954237,8.47,118.12,118.08,36.97899693]
[1741645954528,33.53582442,118.14,118.08,36.97899693]
[1741645954728,0.06195096,118.11,118.09,0.0585898]
[1741645955623,0.06195096,118.11,118.07,296.87639362]
[1741645955624,8.4728,118.08,118.07,296.87639362]
[1741645955831,42.00862442,118.08,118.07,296.87639362]
[1741645956423,42.00862442,118.08,118.07,266.21489362]
[1741645956628,36.07582442,118.08,117.99,35.82]
[1741645956820,33.53582442,118.06,117.98,12.3693]
[1741645957027,8.477,118.03,118.02,0.0621257]
[1741645957220,8.53230726,118.03,118.02,0.0621257]
[1741645957821,0.05530726,118.03,118.02,0.0621257]
[1741645958625,8.53170726,118.03,118.02,0.0621257]
[1741645958832,481.12155976,118.03,118.02,0.0621257]
[1741645959031,472.64515976,118.03,118.02,0.0621257]
[1741645959236,472.64515976,118.03,118.02,8.5393257]
[1741645959631,472.64515976,118.03,118.02,0.0621257]
[1741645961934,0.05530726,118.03,118.02,0.0621257]
[1741645963430,0.05530726,118.03,118.02,8.5393257]
[1741645963827,0.05530726,118.03,118.02,0.0621257]
[1741645967134,46.91170726,118.03,118.02,2.57e-05]
[1741645967335,38.43530726,118.03,117.94,35.88]
[1741645967536,8.4809,117.97,117.94,8.4826]
[1741645967837,8.4809,117.97,117.93,3.3422]
[1741645968036,35.88,118.0,117.93,3.3422]
[1741645968437,0.06293685,117.98,117.95,0.0561188]
[1741645968639,0.06293685,117.98,117.97,8.4808]
[1741645969034,69.45582442,118.05,117.97,35.92]
[1741645969234,8.4772,118.02,117.98,8.4796]
[1741645969437,33.53582442,118.03,117.97,35.92]
[1741645969631,35.96,118.02,117.97,35.92]
[1741645969830,8.4782,118.01,117.97,35.92]
[1741645970040,35.96,118.02,117.97,35.92]
[1741645970241,0.05434846,118.0,117.98,8.54307015]
[1741645970439,0.05434846,118.0,117.98,0.06327015]
[1741645973641,8.53354846,118.0,117.98,0.06327015]
[1741645973843,0.05434846,118.0,117.98,0.06327015]
[1741645974640,8.53334846,118.0,117.98,0.06327015]
[1741645975441,0.05434846,118.0,117.98,0.06327015]
[1741645975638,0.05434846,118.0,117.98,8.54327015]
[1741645975839,0.05434846,118.0,117.98,0.06327015]
[1741645976040,8.53364846,118.0,117.98,0.06327015]
[1741645976849,8.4793,117.99,117.98,0.06327015]
[1741645977042,0.05434846,118.0,117.98,0.06327015]
[1741645977945,0.05434846,118.0,117.98,8.54327015]
[1741645978343,0.05434846,118.0,117.98,8.4497525]
[1741645978741,0.05434846,118.0,117.97,35.92]
[1741645978940,0.05434846,118.0,117.94,3.3774]
[1741645979140,8.4805,117.98,117.94,38.9574]
[1741645979438,69.37582442,118.03,117.96,0.05602778]
[1741645979744,33.53582442,117.99,117.91,39.3894]
[1741645979944,69.09582442,117.99,117.91,39.3894]
[1741645980145,69.09582442,117.99,117.91,12.3339]
[1741645980745,8.483,117.94,117.91,12.3339]
[1741645981145,0.06471892,117.96,117.91,0.06481444]
[1741645981342,8.4843,117.92,117.91,0.06481444]
[1741645981744,44.0043,117.92,117.91,1.444e-05]
[1741645981945,46.5443,117.92,117.91,1.444e-05]
[1741645982142,44.56012442,117.92,117.91,1.444e-05]
[1741645982549,42.02012442,117.92,117.91,1.444e-05]
[1741645982944,44.56012442,117.92,117.91,1.444e-05]
[1741645983144,42.02012442,117.92,117.91,1.444e-05]
[1741645983447,8.4877,117.88,117.83,45.3242]
[1741645983746,35.54,117.91,117.83,45.3242]
[1741645984541,0.06496026,117.88,117.86,0.06468591]
[1741645985048,0.06496026,117.88,117.86,8.55288591]
[1741645985247,0.06496026,117.88,117.86,0.06468591]
[1741645986648,8.4879,117.87,117.86,0.06468591]
[1741645986844,8.4879,117.87,117.71,16.9978]
[1741645986845,348.89582442,117.87,117.7,35.58]
[1741645987041,33.53582442,117.83,117.76,3.364]
[1741645987244,35.58,117.82,117.76,3.364]
[1741645987441,33.53582442,117.81,117.76,3.364]
[1741645987744,33.53582442,117.81,117.72,3.4354]
[1741645987947,33.53582442,117.79,117.71,3.3165]
[1741645988136,33.53582442,117.77,117.71,3.3165]
[1741645988338,8.4959,117.76,117.75,2.078e-05]
[1741645988544,33.53582442,117.77,117.67,6.7994]
[1741645988545,16.0611468,117.75,117.67,6.7994]
[1741645988745,35.62,117.74,117.67,6.7994]
[1741645989444,8.4995,117.71,117.67,3.364]
[1741645989647,8.4995,117.71,117.69,0.0635478]
[1741645989949,69.27582442,117.7,117.67,3.364]
[1741645990139,35.74,117.7,117.66,3.3165]
[1741645990540,35.86,117.73,117.66,3.3165]
[1741645991058,0.06461846,117.71,117.68,0.05694432]
[1741645991240,0.06461846,117.71,117.68,35.91694432]
[1741645991446,0.06461846,117.71,117.68,35.86]
[1741645991647,35.88,117.76,117.69,8.5004]
[1741645992042,33.53582442,117.78,117.7,3.2467]
[1741645992243,8.4957,117.77,117.7,3.2467]
[1741645992452,8.4957,117.77,117.71,36.0]
[1741645992655,33.53582442,117.78,117.71,36.0]
[1741645992854,0.06225791,117.75,117.73,0.06534109]
[1741645993549,33.53582442,117.74,117.73,0.06534109]
[1741645993749,0.06225791,117.75,117.73,0.06534109]
[1741645998357,35.9,117.74,117.73,0.06534109]
[1741645998552,44.3973,117.74,117.73,0.06534109]
[1741645999055,35.9,117.74,117.73,0.06534109]
[1741645999455,0.06225791,117.75,117.73,0.06534109]
[1741646001958,0.06225791,117.75,117.73,8.56294109]
[1741646002256,0.06225791,117.75,117.73,0.06534109]
[1741646003858,90.53851078,117.74,117.73,4.109e-05]
[1741646004055,99.03581078,117.74,117.73,4.109e-05]
[1741646004253,93.07851078,117.74,117.66,6.1757]
[1741646004556,54.71851078,117.71,117.66,6.1757]
[1741646005248,54.71851078,117.73,117.66,6.1757]
[1741646005456,54.71851078,117.73,117.67,35.82]
[1741646005753,0.06223878,117.7,117.67,35.87618065]
[1741646005954,54.71851078,117.75,117.68,8.5011]
[1741646006151,8.5003,117.7,117.67,35.87616825]
[1741646006345,54.71851078,117.73,117.69,8.5009]
[1741646006546,0.05707626,117.71,117.7,35.88]
[1741646007957,46.00957362,117.78,117.73,8.4977]
[1741646008157,46.00957362,117.78,117.74,35.92]
[1741646008956,0.06010119,117.77,117.75,0.06427468]
[1741646009157,0.06010119,117.77,117.76,8.4959]
[1741646009360,0.06010119,117.77,117.75,2.84967468]
[1741646009557,11.5023934,117.8,117.77,8.4946]
[1741646009759,11.5023934,117.8,117.75,2.84967468]
[1741646010359,8.4938,117.79,117.75,11.34587468]
[1741646010558,11.5023934,117.8,117.75,11.34587468]
[1741646010559,11.5023934,117.8,117.75,2.84967468]
[1741646010865,8.4959,117.76,117.75,0.06427468]
[1741646011163,0.05709343,117.78,117.75,0.06427468]
[1741646011350,0.05709343,117.78,117.75,8.56037468]
[1741646011552,0.05709343,117.78,117.75,0.06427468]
[1741646012457,8.55209343,117.78,117.75,0.06427468]
[1741646012663,0.05709343,117.78,117.75,0.06427468]
[1741646013262,0.05709343,117.78,117.71,93.18931078]
[1741646014258,8.4955,117.77,117.73,8.55295675]
[1741646014654,0.05709343,117.78,117.73,0.05495675]
[1741646014954,0.05709343,117.78,117.74,36.38]
[1741646015161,0.05709343,117.78,117.75,2.6898]
[1741646015357,8.4956,117.77,117.75,2.6898]
[1741646015557,0.05709343,117.78,117.75,2.6898]
[1741646015759,0.05709343,117.78,117.76,8.4954]
[1741646015965,0.05709343,117.78,117.75,2.6898]
[1741646016264,0.05709343,117.78,117.76,8.4955]
[1741646016464,0.05709343,117.78,117.75,2.75208881]
[1741646016865,11.5023934,117.83,117.75,36.41136178]
[1741646017065,11.5023934,117.83,117.75,2.6898]
[1741646017363,8.4941,117.79,117.75,11.186]
[1741646017559,70.01927297,117.82,117.75,2.6898]
[1741646017765,33.65927297,117.8,117.75,2.6898]
[1741646018063,0.06127672,117.8,117.77,0.06106186]
[1741646019253,8.55447672,117.8,117.77,8.55586186]
[1741646019961,0.06127672,117.8,117.78,8.4938]
[1741646020164,0.06127672,117.8,117.77,0.06106186]
[1741646020563,0.06127672,117.8,117.78,8.4944]
[1741646020761,0.06127672,117.8,117.77,0.06106186]
[1741646021165,11.5023934,117.83,117.77,33.72033483]
[1741646021367,11.5023934,117.83,117.77,2.54886186]
[1741646021661,33.65927297,117.82,117.77,2.54886186]
[1741646021875,33.65927297,117.82,117.77,0.06106186]
[1741646022072,36.3,117.81,117.77,0.06106186]
[1741646022267,8.4944,117.78,117.77,0.06106186]
[1741646022867,42.15367297,117.78,117.77,6.186e-05]
[1741646023067,8.4977,117.74,117.7,2.8209]
[1741646023467,69.95927297,117.78,117.7,2.8209]
[1741646024265,0.05648757,117.76,117.74,0.06343174]
[1741646024658,8.4966,117.75,117.74,0.06343174]
[1741646024858,0.05648757,117.76,117.74,0.06343174]
[1741646025864,8.4966,117.75,117.74,0.06343174]
[1741646026265,0.05648757,117.76,117.74,0.06343174]
[1741646026665,45.1966,117.75,117.74,3.174e-05]
[1741646026972,36.7,117.75,117.7,2.8209]
[1741646027166,33.65927297,117.74,117.7,2.8209]
[1741646027466,33.65927297,117.76,117.7,2.8209]
[1741646027671,8.4971,117.75,117.7,2.8209]
[1741646027966,0.05534997,117.74,117.71,0.06403454]
[1741646028168,36.72,117.78,117.71,0.06403454]
[1741646028368,70.37927297,117.78,117.71,0.06403454]
[1741646028768,8.4977,117.74,117.71,0.06403454]
[1741646028969,70.37927297,117.78,117.71,0.06403454]
[1741646029169,5.03793983,117.77,117.71,0.06403454]
[1741646029373,8.497,117.75,117.71,8.56323454]
[1741646029570,0.05700394,117.76,117.71,0.06403454]
[1741646030369,0.05700394,117.76,117.72,8.4984]
[1741646030570,0.05700394,117.76,117.71,0.06403454]
[1741646030968,8.55330394,117.76,117.72,8.4981]
[1741646031170,0.05700394,117.76,117.71,0.06403454]
[1741646031471,0.05700394,117.76,117.72,8.4983]
[1741646031966,0.05700394,117.76,117.71,0.06403454]
[1741646032367,8.497,117.75,117.71,8.56313454]
[1741646032670,0.05700394,117.76,117.71,0.06403454]
[1741646032865,0.05700394,117.76,117.71,8.56313454]
[1741646033169,0.05700394,117.76,117.71,0.06403454]
[1741646033369,0.05700394,117.76,117.72,8.4986]
[1741646033768,0.05700394,117.76,117.71,0.06403454]
[1741646035172,0.05700394,117.76,117.74,8.497]
[1741646035676,0.05700394,117.76,117.74,8.55519757]
[1741646035877,0.05700394,117.76,117.74,0.05819757]
[1741646036570,8.4966,117.75,117.74,0.05819757]
[1741646037172,8.4966,117.75,117.74,9.757e-05]
[1741646037377,13.55603392,117.75,117.74,9.757e-05]
[1741646037573,8.4995,117.71,117.7,2.8209]
[1741646038074,42.4257,117.81,117.73,8.4974]
[1741646038075,36.62,117.79,117.73,8.4974]
[1741646038280,5.06075198,117.78,117.7,36.48017297]
[1741646038480,36.62,117.79,117.7,36.48017297]
[1741646038680,8.4966,117.76,117.7,36.48017297]
[1741646038880,8.55081359,117.76,117.73,0.06323294]
[1741646039181,0.05421359,117.76,117.73,0.06323294]
[1741646039782,0.05421359,117.76,117.74,8.4973]
[1741646040278,0.05421359,117.76,117.73,0.06323294]
[1741646040483,82.62957362,117.83,117.73,35.88130591]
[1741646040783,41.70192903,117.82,117.73,35.81807297]
[1741646040982,36.64,117.82,117.73,2.1588]
[1741646041184,5.06207591,117.81,117.73,2.1588]
[1741646041386,5.06207591,117.8,117.73,2.1588]
[1741646041585,0.05827257,117.78,117.76,0.06378162]
[1741646041881,36.74,117.79,117.76,0.06378162]
[1741646042100,0.05719387,117.78,117.76,0.06378162]
[1741646042475,8.4952,117.77,117.76,0.06378162]
[1741646043081,0.05719387,117.78,117.76,0.06378162]
[1741646043581,8.4952,117.77,117.76,0.06378162]
[1741646043782,0.05719387,117.78,117.76,0.06378162]
[1741646044292,70.63927297,117.77,117.71,2.0847]
[1741646044490,36.98,117.77,117.71,2.0847]
[1741646045090,33.65927297,117.79,117.73,8.4978]
[1741646045386,0.05910323,117.77,117.75,0.05799761]
[1741646046494,8.4934,117.8,117.75,8.55419761]
[1741646046695,8.4934,117.8,117.76,2.1036]
[1741646046896,313.81927297,117.84,117.76,2.1036]
[1741646047098,116.70884659,117.86,117.77,37.04]
[1741646047494,0.05362831,117.83,117.8,0.05398933]
[1741646047993,8.54492831,117.83,117.8,0.05398933]
[1741646048693,0.05362831,117.83,117.8,0.05398933]
[1741646049399,8.4923,117.81,117.8,0.05398933]
[1741646051092,0.05362831,117.83,117.8,0.05398933]
[1741646052495,8.4892,117.86,117.82,8.491]
[1741646052799,33.65927297,117.88,117.81,2.2388]
[1741646052987,5.06167537,117.87,117.81,2.2388]
[1741646053191,33.65927297,117.88,117.81,2.2388]
[1741646053591,8.4915,117.82,117.81,2.2388]
[1741646053796,33.65927297,117.84,117.79,2.0958]
[1741646053992,8.4921,117.82,117.8,0.05981638]
[1741646054193,0.06152845,117.83,117.8,0.05981638]
[1741646054392,0.06152845,117.83,117.8,39.26111638]
[1741646054594,0.06152845,117.83,117.8,47.75391638]
[1741646054797,0.06152845,117.83,117.8,39.26111638]
[1741646056301,0.06152845,117.83,117.81,8.4917]
[1741646056994,37.08,117.88,117.8,72.92038935]
[1741646057188,37.08,117.88,117.8,72.86057297]
[1741646057994,8.4891,117.86,117.82,8.4912]
[1741646058291,0.06018671,117.85,117.83,0.06020016]
[1741646058495,8.4901,117.84,117.83,0.06020016]
[1741646058990,8.4901,117.84,117.79,10.589]
[1741646058991,8.4912,117.83,117.79,2.0958]
[1741646059195,33.65927297,117.84,117.79,2.0958]
[1741646059600,33.65927297,117.82,117.73,282.281]
[1741646059802,70.75927297,117.82,117.75,2.1596]
[1741646060196,0.05700801,117.8,117.77,0.05787093]
[1741646060599,8.4944,117.78,117.77,0.05787093]
[1741646061000,0.05700801,117.8,117.77,0.05787093]
[1741646061804,8.4944,117.78,117.77,0.05787093]
[1741646062011,33.65927297,117.78,117.68,33.65927297]
[1741646062200,33.65927297,117.76,117.69,6.631]
[1741646062401,8.5002,117.7,117.69,2.1967]
[1741646063715,8.56078192,117.71,117.69,2.1967]
[1741646064095,227.65927297,117.78,117.69,2.1967]
[1741646064096,37.06,117.75,117.69,2.1967]
[1741646064308,70.75927297,117.78,117.7,2.198]
[1741646064506,33.65927297,117.76,117.7,2.198]
[1741646064907,8.4992,117.72,117.7,2.198]
[1741646065307,0.05372053,117.72,117.7,0.0537465]
[1741646065608,70.91927297,117.71,117.64,2.0761]
[1741646065801,37.26,117.71,117.63,33.65927297]
[1741646066007,37.26,117.71,117.64,2.0761]
[1741646066414,37.26,117.71,117.65,8.5032]
[1741646066616,0.05921712,117.69,117.66,37.37629757]
[1741646066812,37.34,117.75,117.67,35.80637297]
[1741646067113,8.4968,117.75,117.69,33.65927297]
[1741646067306,71.01927297,117.77,117.7,39.5246]
[1741646067914,33.65927297,117.79,117.7,39.5246]
[1741646068107,71.41927297,117.83,117.72,33.71561533]
[1741646068409,33.65927297,117.81,117.73,39.8487]
[1741646068807,33.65927297,117.83,117.73,2.0887]
[1741646068808,37.84,117.8,117.73,2.0887]
[1741646069013,33.65927297,117.79,117.73,2.0887]
[1741646069309,8.4968,117.75,117.73,2.0887]
[1741646069815,0.06093199,117.77,117.75,8.4966]
[1741646070007,33.65927297,117.83,117.76,2.1844]
[1741646070313,33.65927297,117.83,117.76,40.0444]
[1741646070508,8.4923,117.81,117.76,40.0444]
[1741646071115,79.66884659,117.87,117.77,33.72366157]
[1741646071414,46.00957362,117.87,117.79,33.65927297]
[1741646071621,46.00957362,117.87,117.8,39.9402]
[1741646071812,33.65927297,117.86,117.8,39.9402]
[1741646072012,71.57927297,117.86,117.8,2.1402]
[1741646072212,8.4909,117.83,117.8,2.1402]
[1741646072412,0.05442253,117.84,117.82,0.0594901]
[1741646072813,8.54472253,117.84,117.82,0.0594901]
[1741646073219,0.05442253,117.84,117.82,0.0594901]
[1741646073922,8.4908,117.83,117.82,0.0594901]
[1741646074115,0.05442253,117.84,117.82,0.0594901]
[1741646075508,8.4908,117.83,117.82,0.0594901]
[1741646075915,0.05442253,117.84,117.82,0.0594901]
[1741646076621,0.05442253,117.84,117.82,2.1801901]